[Event "December 12 Early 2023"]
[Site "https://www.chess.com"]
[Date "2023.12.12"]
[Round "3"]
[White "Kleibel, Uwe"]
[Black "Hua, Lefong"]
[Result "0-1"]
[Board "177"]
[TimeControl "180+1"]
[WhiteFideId "1270982"]
[BlackFideId "2602253"]
[WhiteElo "2352"]
[BlackElo "2673"]
[WhiteTeam "GER"]
[BlackTeam "CAN"]
[WhiteClock "0:00:13"]
[BlackClock "0:00:35"]

1. e4 {[%clk 0:02:55]}  c5 {[%clk 0:02:59]} 2. Nf3 {[%clk 0:02:55]}  g6 {[%clk 0:02:59]} 3. d4 {[%clk 0:02:51]}  cxd4 {[%clk 0:02:59]} 4. Qxd4 {[%clk 0:02:52]}  Nf6 {[%clk 0:02:59]} 5. Nc3 {[%clk 0:02:52]}  Nc6 {[%clk 0:03:00]} 6. Qa4 {[%clk 0:02:51]}  d6 {[%clk 0:03:00]} 7. e5 {[%clk 0:02:50]}  dxe5 {[%clk 0:03:01]} 8. Nxe5 {[%clk 0:02:50]}  Bg7 {[%clk 0:03:01]} 9. Nxc6 {[%clk 0:02:42]}  bxc6 {[%clk 0:03:02]} 10. Qxc6+ {[%clk 0:02:38]}  Bd7 {[%clk 0:02:58]} 11. Qf3 {[%clk 0:02:35]}  O-O {[%clk 0:02:56]} 12. Bd3 {[%clk 0:02:33]}  Rc8 {[%clk 0:02:51]} 13. O-O {[%clk 0:02:23]}  Bc6 {[%clk 0:02:51]} 14. Ne4 {[%clk 0:02:13]}  Nd5 {[%clk 0:02:39]} 15. Qe2 {[%clk 0:02:01]}  Nb4 {[%clk 0:02:32]} 16. Rd1 {[%clk 0:01:42]}  Nxd3 {[%clk 0:02:31]} 17. Rxd3 {[%clk 0:01:36]}  Qc7 {[%clk 0:02:28]} 18. Rd1 {[%clk 0:01:14]}  Bxe4 {[%clk 0:02:24]} 19. Qxe4 {[%clk 0:01:12]}  Qxc2 {[%clk 0:02:24]} 20. Qxc2 {[%clk 0:01:10]}  Rxc2 {[%clk 0:02:25]} 21. Rb1 {[%clk 0:01:08]}  Rfc8 {[%clk 0:02:19]} 22. g3 {[%clk 0:01:05]}  h5 {[%clk 0:02:11]} 23. h4 {[%clk 0:01:04]}  a6 {[%clk 0:02:06]} 24. a4 {[%clk 0:01:01]}  Be5 {[%clk 0:01:58]} 25. b3 {[%clk 0:00:49]}  Bd6 {[%clk 0:01:37]} 26. Be3 {[%clk 0:00:46]}  Bc5 {[%clk 0:01:24]} 27. Bxc5 {[%clk 0:00:42]}  R8xc5 {[%clk 0:01:25]} 28. Rd7 {[%clk 0:00:38]}  Rf5 {[%clk 0:01:21]} 29. Rf1 {[%clk 0:00:30]}  e6 {[%clk 0:01:22]} 30. Ra7 {[%clk 0:00:29]}  a5 {[%clk 0:01:22]} 31. Rb7 {[%clk 0:00:27]}  Rb2 {[%clk 0:01:21]} 32. Kg2 {[%clk 0:00:27]}  Rd5 {[%clk 0:01:15]} 33. Rb6 {[%clk 0:00:16]}  Kg7 {[%clk 0:01:09]} 34. Rb7 {[%clk 0:00:16]}  Kf6 {[%clk 0:01:08]} 35. Rb6 {[%clk 0:00:16]}  Rd3 {[%clk 0:01:00]} 36. Rb5 {[%clk 0:00:15]}  Rdxb3 {[%clk 0:00:59]} 37. Rxa5 {[%clk 0:00:15]}  Ra2 {[%clk 0:01:00]} 38. Ra7 {[%clk 0:00:15]}  Rba3 {[%clk 0:00:59]} 39. a5 {[%clk 0:00:16]}  Rxa5 {[%clk 0:00:59]} 40. Rxa5 {[%clk 0:00:17]}  Rxa5 {[%clk 0:00:59]} 41. Re1 {[%clk 0:00:18]}  e5 {[%clk 0:00:59]} 42. Rd1 {[%clk 0:00:18]}  Kf5 {[%clk 0:00:57]} 43. Rb1 {[%clk 0:00:19]}  f6 {[%clk 0:00:57]} 44. Rb7 {[%clk 0:00:19]}  Ra2 {[%clk 0:00:57]} 45. Kf3 {[%clk 0:00:19]}  e4+ {[%clk 0:00:57]} 46. Ke3 {[%clk 0:00:19]}  Ra3+ {[%clk 0:00:55]} 47. Ke2 {[%clk 0:00:20]}  g5 {[%clk 0:00:49]} 48. Rb5+ {[%clk 0:00:19]}  Kg4 {[%clk 0:00:47]} 49. Rb4 {[%clk 0:00:17]}  f5 {[%clk 0:00:46]} 50. hxg5 {[%clk 0:00:17]}  Kxg5 {[%clk 0:00:46]} 51. Rb8 {[%clk 0:00:18]}  Ra6 {[%clk 0:00:45]} 52. Rg8+ {[%clk 0:00:18]}  Rg6 {[%clk 0:00:45]} 53. Rh8 {[%clk 0:00:19]}  Kg4 {[%clk 0:00:40]} 54. Ke3 {[%clk 0:00:19]}  Kg5 {[%clk 0:00:40]} 55. Ke2 {[%clk 0:00:19]}  Rh6 {[%clk 0:00:39]} 56. Rg8+ {[%clk 0:00:19]}  Kf6 {[%clk 0:00:40]} 57. Ke3 {[%clk 0:00:18]}  h4 {[%clk 0:00:40]} 58. gxh4 {[%clk 0:00:17]}  Rxh4 {[%clk 0:00:41]} 59. Ke2 {[%clk 0:00:18]}  Ke5 {[%clk 0:00:40]} 60. Ke3 {[%clk 0:00:18]}  Rh3+ {[%clk 0:00:39]} 61. Ke2 {[%clk 0:00:18]}  Kf4 {[%clk 0:00:36]} 62. Rf8 {[%clk 0:00:18]}  Ra3 {[%clk 0:00:36]} 63. Rf7 {[%clk 0:00:18]}  Ra4 {[%clk 0:00:36]} 64. Rf8 {[%clk 0:00:17]}  Ra2+ {[%clk 0:00:36]} 65. Ke1 {[%clk 0:00:17]}  Kg4 {[%clk 0:00:37]} 66. Rg8+ {[%clk 0:00:16]}  Kf3 {[%clk 0:00:37]} 67. Rf8 {[%clk 0:00:17]}  f4 {[%clk 0:00:35]} 68. Rf7 {[%clk 0:00:15]}  Re2+ {[%clk 0:00:34]} 69. Kf1 {[%clk 0:00:13]}  Rxf2+ {[%clk 0:00:35]} 0-1

[Event "December 12 Early 2023"]
[Site "https://www.chess.com"]
[Date "2023.12.12"]
[Round "3"]
[White "Vigoa Apecheche, Yanira"]
[Black "Kleiman, Jake"]
[Result "1/2-1/2"]
[Board "178"]
[TimeControl "180+1"]
[WhiteFideId "3507041"]
[BlackFideId "2020041"]
[WhiteElo "2349"]
[BlackElo "2631"]
[WhiteTeam "USA"]
[BlackTeam "USA"]
[WhiteClock "0:00:31"]
[BlackClock "0:00:13"]

1. d4 {[%clk 0:02:42]}  Nf6 {[%clk 0:02:57]} 2. Bg5 {[%clk 0:02:42]}  Ne4 {[%clk 0:02:57]} 3. Bf4 {[%clk 0:02:42]}  Nc6 {[%clk 0:02:57]} 4. e3 {[%clk 0:02:40]}  d5 {[%clk 0:02:57]} 5. Bd3 {[%clk 0:02:40]}  e6 {[%clk 0:02:54]} 6. Bxe4 {[%clk 0:02:38]}  dxe4 {[%clk 0:02:54]} 7. Nd2 {[%clk 0:02:39]}  f5 {[%clk 0:02:54]} 8. f3 {[%clk 0:02:34]}  exf3 {[%clk 0:02:55]} 9. Ngxf3 {[%clk 0:02:34]}  Bd6 {[%clk 0:02:53]} 10. Ne5 {[%clk 0:02:29]}  Nxe5 {[%clk 0:02:51]} 11. dxe5 {[%clk 0:02:29]}  Bb4 {[%clk 0:02:44]} 12. c3 {[%clk 0:02:28]}  Be7 {[%clk 0:02:41]} 13. Qe2 {[%clk 0:02:25]}  Qd5 {[%clk 0:02:38]} 14. O-O {[%clk 0:02:11]}  Bd7 {[%clk 0:02:26]} 15. c4 {[%clk 0:01:40]}  Qc6 {[%clk 0:02:18]} 16. a3 {[%clk 0:01:35]}  a5 {[%clk 0:02:17]} 17. Rac1 {[%clk 0:01:32]}  a4 {[%clk 0:02:12]} 18. Nf3 {[%clk 0:01:28]}  O-O {[%clk 0:02:02]} 19. Rfd1 {[%clk 0:01:23]}  Rad8 {[%clk 0:01:58]} 20. Nd4 {[%clk 0:01:12]}  Qe4 {[%clk 0:01:57]} 21. c5 {[%clk 0:01:12]}  Bb5 {[%clk 0:01:17]} 22. Qxb5 {[%clk 0:00:41]}  Rd5 {[%clk 0:01:12]} 23. Nxe6 {[%clk 0:00:40]}  Rc8 {[%clk 0:00:59]} 24. Rd4 {[%clk 0:00:37]}  Rxd4 {[%clk 0:00:57]} 25. Nxd4 {[%clk 0:00:38]}  g5 {[%clk 0:00:54]} 26. Qc4+ {[%clk 0:00:38]}  Kh8 {[%clk 0:00:53]} 27. Qf7 {[%clk 0:00:36]}  gxf4 {[%clk 0:00:49]} 28. Qxe7 {[%clk 0:00:36]}  Qxe3+ {[%clk 0:00:49]} 29. Kf1 {[%clk 0:00:32]}  Qxc1+ {[%clk 0:00:49]} 30. Kf2 {[%clk 0:00:32]}  Qe3+ {[%clk 0:00:17]} 31. Kf1 {[%clk 0:00:32]}  Qc1+ {[%clk 0:00:13]} 32. Kf2 {[%clk 0:00:31]}  Qe3+ {[%clk 0:00:13]} 33. Kf1 {[%clk 0:00:31]}  Qc1+ {[%clk 0:00:13]} 1/2-1/2

[Event "December 12 Early 2023"]
[Site "https://www.chess.com"]
[Date "2023.12.12"]
[Round "3"]
[White "DHLT216"]
[Black "Mesa Cruz, Juan Carlos"]
[Result "1-0"]
[Board "179"]
[TimeControl "180+1"]
[BlackFideId "6423400"]
[WhiteElo "2627"]
[BlackElo "2347"]
[BlackTeam "DOM"]
[WhiteClock "0:01:21"]
[BlackClock "0:00:06"]

1. e4 {[%clk 0:03:00]}  c5 {[%clk 0:02:56]} 2. Nf3 {[%clk 0:03:00]}  d6 {[%clk 0:02:56]} 3. d4 {[%clk 0:03:00]}  cxd4 {[%clk 0:02:57]} 4. Nxd4 {[%clk 0:03:01]}  Nf6 {[%clk 0:02:57]} 5. Nc3 {[%clk 0:03:01]}  a6 {[%clk 0:02:58]} 6. Bc4 {[%clk 0:03:01]}  e6 {[%clk 0:02:58]} 7. Qe2 {[%clk 0:03:01]}  b5 {[%clk 0:02:58]} 8. Bb3 {[%clk 0:03:01]}  Nbd7 {[%clk 0:02:57]} 9. g4 {[%clk 0:02:59]}  Nc5 {[%clk 0:02:56]} 10. g5 {[%clk 0:02:59]}  Nfd7 {[%clk 0:02:56]} 11. h4 {[%clk 0:02:58]}  Bb7 {[%clk 0:02:55]} 12. f3 {[%clk 0:02:58]}  Qc7 {[%clk 0:02:49]} 13. Be3 {[%clk 0:02:56]}  Be7 {[%clk 0:02:31]} 14. O-O-O {[%clk 0:02:52]}  b4 {[%clk 0:02:23]} 15. Na4 {[%clk 0:02:52]}  O-O {[%clk 0:02:19]} 16. h5 {[%clk 0:02:48]}  Nxa4 {[%clk 0:02:11]} 17. Bxa4 {[%clk 0:02:48]}  Nc5 {[%clk 0:02:11]} 18. Bb3 {[%clk 0:02:45]}  a5 {[%clk 0:02:11]} 19. g6 {[%clk 0:02:45]}  Bf6 {[%clk 0:02:03]} 20. gxf7+ {[%clk 0:02:44]}  Kxf7 {[%clk 0:01:55]} 21. Nb5 {[%clk 0:02:43]}  Ba6 {[%clk 0:01:48]} 22. Nxc7 {[%clk 0:02:30]}  Bxe2 {[%clk 0:01:47]} 23. Nxa8 {[%clk 0:02:28]}  Rxa8 {[%clk 0:01:21]} 24. Rxd6 {[%clk 0:02:26]}  Bxf3 {[%clk 0:01:20]} 25. Bxc5 {[%clk 0:02:19]}  Bxh1 {[%clk 0:01:10]} 26. Bxe6+ {[%clk 0:02:18]}  Ke8 {[%clk 0:01:08]} 27. Bd5 {[%clk 0:02:13]}  Rd8 {[%clk 0:01:03]} 28. Re6+ {[%clk 0:02:08]}  Kd7 {[%clk 0:01:02]} 29. Ra6 {[%clk 0:02:05]}  Be5 {[%clk 0:00:47]} 30. Rxa5 {[%clk 0:02:00]}  Bf3 {[%clk 0:00:47]} 31. h6 {[%clk 0:01:57]}  gxh6 {[%clk 0:00:44]} 32. Ra7+ {[%clk 0:01:53]}  Bc7 {[%clk 0:00:44]} 33. Bb6 {[%clk 0:01:52]}  Rc8 {[%clk 0:00:43]} 34. Bb7 {[%clk 0:01:51]}  Rb8 {[%clk 0:00:43]} 35. Bxc7 {[%clk 0:01:49]}  Kxc7 {[%clk 0:00:24]} 36. Bd5+ {[%clk 0:01:49]}  Kd6 {[%clk 0:00:23]} 37. Rxh7 {[%clk 0:01:49]}  h5 {[%clk 0:00:24]} 38. Kd2 {[%clk 0:01:48]}  Ke5 {[%clk 0:00:16]} 39. Ke3 {[%clk 0:01:47]}  Bg4 {[%clk 0:00:16]} 40. Re7+ {[%clk 0:01:46]}  Kd6 {[%clk 0:00:17]} 41. Ra7 {[%clk 0:01:44]}  Rc8 {[%clk 0:00:16]} 42. Kd4 {[%clk 0:01:40]}  Rc7 {[%clk 0:00:10]} 43. e5+ {[%clk 0:01:40]}  Kd7 {[%clk 0:00:10]} 44. e6+ {[%clk 0:01:41]}  Kd6 {[%clk 0:00:10]} 45. Rxc7 {[%clk 0:01:40]}  Kxc7 {[%clk 0:00:11]} 46. Ke5 {[%clk 0:01:39]}  Kd8 {[%clk 0:00:11]} 47. Kd6 {[%clk 0:01:38]}  h4 {[%clk 0:00:02]} 48. e7+ {[%clk 0:01:38]}  Ke8 {[%clk 0:00:02]} 49. Bc6+ {[%clk 0:01:38]}  Kf7 {[%clk 0:00:03]} 50. e8=Q+ {[%clk 0:01:38]}  Kf6 {[%clk 0:00:04]} 51. Qh8+ {[%clk 0:01:37]}  Kf5 {[%clk 0:00:04]} 52. Qxh4 {[%clk 0:01:35]}  Kf4 {[%clk 0:00:05]} 53. Bd7 {[%clk 0:01:34]}  b3 {[%clk 0:00:04]} 54. Qxg4+ {[%clk 0:01:34]}  Ke3 {[%clk 0:00:05]} 55. Qg3+ {[%clk 0:01:31]}  Kd4 {[%clk 0:00:05]} 56. Qxb3 {[%clk 0:01:32]}  Ke4 {[%clk 0:00:05]} 57. Qd3+ {[%clk 0:01:30]}  Kf4 {[%clk 0:00:05]} 58. Qd4+ {[%clk 0:01:28]}  Kf3 {[%clk 0:00:05]} 59. Bc6+ {[%clk 0:01:27]}  Ke2 {[%clk 0:00:05]} 60. Qc3 {[%clk 0:01:27]}  Kd1 {[%clk 0:00:05]} 61. Ke5 {[%clk 0:01:25]}  Kc1 {[%clk 0:00:05]} 62. Ke4 {[%clk 0:01:24]}  Kd1 {[%clk 0:00:05]} 63. Ke3 {[%clk 0:01:24]}  Kc1 {[%clk 0:00:06]} 64. Bd5 {[%clk 0:01:23]}  Kb1 {[%clk 0:00:06]} 65. b4 {[%clk 0:01:21]}  Kc1 {[%clk 0:00:06]} 66. Kd3 {[%clk 0:01:21]}  Kb1 {[%clk 0:00:05]} 67. a4 {[%clk 0:01:20]}  Kc1 {[%clk 0:00:04]} 68. a5 {[%clk 0:01:20]}  Kb1 {[%clk 0:00:04]} 69. a6 {[%clk 0:01:21]}  Kc1 {[%clk 0:00:05]} 70. a7 {[%clk 0:01:21]}  Kb1 {[%clk 0:00:06]} 71. a8=Q {[%clk 0:01:21]}  Kc1 {[%clk 0:00:06]} 72. Qaa1# {[%clk 0:01:21]} 1-0

[Event "December 12 Early 2023"]
[Site "https://www.chess.com"]
[Date "2023.12.12"]
[Round "3"]
[White "Luukkonen, Tommi"]
[Black "Eden, James"]
[Result "0-1"]
[Board "180"]
[TimeControl "180+1"]
[WhiteFideId "501808"]
[BlackFideId "666491"]
[WhiteElo "2342"]
[BlackElo "2611"]
[WhiteTeam "FIN"]
[BlackTeam "FRA"]
[WhiteClock "0:00:00"]
[BlackClock "0:00:10"]

1. e4 {[%clk 0:03:00]}  c5 {[%clk 0:02:58]} 2. d4 {[%clk 0:02:56]}  cxd4 {[%clk 0:02:57]} 3. Qxd4 {[%clk 0:02:57]}  Nc6 {[%clk 0:02:56]} 4. Qd3 {[%clk 0:02:58]}  g6 {[%clk 0:02:51]} 5. Nc3 {[%clk 0:02:58]}  Bg7 {[%clk 0:02:51]} 6. Nf3 {[%clk 0:02:56]}  d6 {[%clk 0:02:50]} 7. Be2 {[%clk 0:02:56]}  Nf6 {[%clk 0:02:49]} 8. O-O {[%clk 0:02:56]}  O-O {[%clk 0:02:49]} 9. Nd5 {[%clk 0:02:57]}  Nxd5 {[%clk 0:02:38]} 10. exd5 {[%clk 0:02:56]}  Nb4 {[%clk 0:02:29]} 11. Qd1 {[%clk 0:02:54]}  Bf5 {[%clk 0:02:26]} 12. c3 {[%clk 0:02:53]}  Nc2 {[%clk 0:02:15]} 13. g4 {[%clk 0:02:53]}  Nxa1 {[%clk 0:01:45]} 14. gxf5 {[%clk 0:02:52]}  Qa5 {[%clk 0:01:45]} 15. a4 {[%clk 0:02:37]}  Qb6 {[%clk 0:01:42]} 16. Nd4 {[%clk 0:01:51]}  Bxd4 {[%clk 0:01:37]} 17. cxd4 {[%clk 0:01:52]}  Nb3 {[%clk 0:01:36]} 18. Bh6 {[%clk 0:01:48]}  Rfc8 {[%clk 0:01:35]} 19. Bg4 {[%clk 0:01:44]}  Nxd4 {[%clk 0:01:29]} 20. fxg6 {[%clk 0:01:42]}  hxg6 {[%clk 0:01:29]} 21. Bxc8 {[%clk 0:01:41]}  Rxc8 {[%clk 0:01:30]} 22. Be3 {[%clk 0:01:37]}  Rc4 {[%clk 0:01:25]} 23. b3 {[%clk 0:01:36]}  Rb4 {[%clk 0:01:17]} 24. Qd3 {[%clk 0:01:31]}  Qc5 {[%clk 0:00:59]} 25. Rd1 {[%clk 0:01:25]}  Qxd5 {[%clk 0:00:58]} 26. Bxd4 {[%clk 0:01:19]}  Rxb3 {[%clk 0:00:54]} 27. Qe2 {[%clk 0:01:13]}  Qg5+ {[%clk 0:00:45]} 28. Kf1 {[%clk 0:01:12]}  Rh3 {[%clk 0:00:40]} 29. Be3 {[%clk 0:01:05]}  Qh4 {[%clk 0:00:37]} 30. Qb5 {[%clk 0:01:02]}  Rxh2 {[%clk 0:00:31]} 31. Ke2 {[%clk 0:01:02]}  a6 {[%clk 0:00:20]} 32. Qxb7 {[%clk 0:00:59]}  Qxa4 {[%clk 0:00:18]} 33. Rd4 {[%clk 0:00:55]}  Qb5+ {[%clk 0:00:18]} 34. Qxb5 {[%clk 0:00:55]}  axb5 {[%clk 0:00:19]} 35. Rb4 {[%clk 0:00:56]}  Rh5 {[%clk 0:00:19]} 36. Kf3 {[%clk 0:00:51]}  f6 {[%clk 0:00:19]} 37. Kg4 {[%clk 0:00:49]}  Kf7 {[%clk 0:00:19]} 38. f4 {[%clk 0:00:49]}  Rd5 {[%clk 0:00:18]} 39. Rb3 {[%clk 0:00:45]}  e5 {[%clk 0:00:18]} 40. f5 {[%clk 0:00:45]}  gxf5+ {[%clk 0:00:17]} 41. Kxf5 {[%clk 0:00:46]}  Rd1 {[%clk 0:00:16]} 42. Rxb5 {[%clk 0:00:42]}  Rf1+ {[%clk 0:00:16]} 43. Ke4 {[%clk 0:00:36]}  Ke6 {[%clk 0:00:17]} 44. Kd3 {[%clk 0:00:34]}  f5 {[%clk 0:00:17]} 45. Ke2 {[%clk 0:00:34]}  Ra1 {[%clk 0:00:17]} 46. Rb6 {[%clk 0:00:35]}  Ra2+ {[%clk 0:00:17]} 47. Kd3 {[%clk 0:00:33]}  Kd5 {[%clk 0:00:17]} 48. Rb4 {[%clk 0:00:33]}  f4 {[%clk 0:00:16]} 49. Bxf4 {[%clk 0:00:30]}  Ra3+ {[%clk 0:00:16]} 50. Kd2 {[%clk 0:00:27]}  exf4 {[%clk 0:00:16]} 51. Rxf4 {[%clk 0:00:28]}  Ke5 {[%clk 0:00:16]} 52. Rf8 {[%clk 0:00:28]}  d5 {[%clk 0:00:16]} 53. Rh8 {[%clk 0:00:24]}  Kd4 {[%clk 0:00:16]} 54. Rh4+ {[%clk 0:00:24]}  Kc5 {[%clk 0:00:16]} 55. Rh8 {[%clk 0:00:24]}  Kc4 {[%clk 0:00:15]} 56. Rh4+ {[%clk 0:00:22]}  d4 {[%clk 0:00:15]} 57. Rh8 {[%clk 0:00:23]}  Ra2+ {[%clk 0:00:15]} 58. Kd1 {[%clk 0:00:23]}  Kc3 {[%clk 0:00:16]} 59. Rc8+ {[%clk 0:00:02]}  Kd3 {[%clk 0:00:15]} 60. Ke1 {[%clk 0:00:02]}  Ra1+ {[%clk 0:00:15]} 61. Kf2 {[%clk 0:00:02]}  Kd2 {[%clk 0:00:12]} 62. Rb8 {[%clk 0:00:01]}  d3 {[%clk 0:00:12]} 63. Rc8 {[%clk 0:00:00]}  Ra7 {[%clk 0:00:10]} 0-1

[Event "December 12 Early 2023"]
[Site "https://www.chess.com"]
[Date "2023.12.12"]
[Round "3"]
[White "Jakubowska, Anna"]
[Black "Kotlyar, Kirill"]
[Result "1/2-1/2"]
[Board "181"]
[TimeControl "180+1"]
[WhiteFideId "1121952"]
[BlackFideId "24145599"]
[WhiteElo "2341"]
[BlackElo "2574"]
[WhiteTeam "POL"]
[BlackTeam "RUS"]
[WhiteClock "0:00:01"]
[BlackClock "0:00:41"]

1. e4 {[%clk 0:03:00]}  e5 {[%clk 0:02:56]} 2. Nf3 {[%clk 0:03:00]}  Nc6 {[%clk 0:02:57]} 3. Bb5 {[%clk 0:02:59]}  a6 {[%clk 0:02:58]} 4. Ba4 {[%clk 0:02:59]}  Nf6 {[%clk 0:02:58]} 5. O-O {[%clk 0:03:00]}  Be7 {[%clk 0:02:59]} 6. d3 {[%clk 0:02:59]}  b5 {[%clk 0:02:59]} 7. Bb3 {[%clk 0:02:59]}  O-O {[%clk 0:03:00]} 8. a4 {[%clk 0:03:00]}  b4 {[%clk 0:02:59]} 9. Re1 {[%clk 0:02:55]}  d6 {[%clk 0:02:57]} 10. c3 {[%clk 0:02:54]}  a5 {[%clk 0:02:55]} 11. Nbd2 {[%clk 0:02:51]}  Rb8 {[%clk 0:02:46]} 12. d4 {[%clk 0:02:50]}  Ra8 {[%clk 0:02:40]} 13. h3 {[%clk 0:02:36]}  Bb7 {[%clk 0:02:36]} 14. Nc4 {[%clk 0:02:30]}  exd4 {[%clk 0:02:27]} 15. cxd4 {[%clk 0:02:30]}  d5 {[%clk 0:02:21]} 16. exd5 {[%clk 0:02:26]}  Nxd5 {[%clk 0:02:22]} 17. Nce5 {[%clk 0:02:21]}  Bf6 {[%clk 0:02:19]} 18. Bd2 {[%clk 0:01:56]}  Re8 {[%clk 0:02:15]} 19. Rc1 {[%clk 0:01:53]}  Nxd4 {[%clk 0:02:09]} 20. Nxd4 {[%clk 0:01:46]}  Bxe5 {[%clk 0:02:09]} 21. Nf5 {[%clk 0:01:21]}  Bxb2 {[%clk 0:01:55]} 22. Qg4 {[%clk 0:01:20]}  g6 {[%clk 0:01:48]} 23. Nh6+ {[%clk 0:01:01]}  Kg7 {[%clk 0:01:48]} 24. Bg5 {[%clk 0:01:01]}  Bf6 {[%clk 0:01:47]} 25. Bxd5 {[%clk 0:00:52]}  Rxe1+ {[%clk 0:01:40]} 26. Rxe1 {[%clk 0:00:51]}  Bxd5 {[%clk 0:01:41]} 27. h4 {[%clk 0:00:29]}  Bxg5 {[%clk 0:01:39]} 28. hxg5 {[%clk 0:00:28]}  Be6 {[%clk 0:01:39]} 29. Qf3 {[%clk 0:00:25]}  Rb8 {[%clk 0:01:33]} 30. Rxe6 {[%clk 0:00:22]}  Qxg5 {[%clk 0:01:21]} 31. Qxf7+ {[%clk 0:00:15]}  Kxh6 {[%clk 0:01:20]} 32. Re3 {[%clk 0:00:16]}  Qxe3 {[%clk 0:01:02]} 33. fxe3 {[%clk 0:00:15]}  b3 {[%clk 0:01:03]} 34. Qf4+ {[%clk 0:00:15]}  Kh5 {[%clk 0:01:02]} 35. g4+ {[%clk 0:00:15]}  Kh4 {[%clk 0:01:03]} 36. g5+ {[%clk 0:00:14]}  Kh5 {[%clk 0:00:54]} 37. Kg2 {[%clk 0:00:12]}  Rb4 {[%clk 0:00:55]} 38. Qh2+ {[%clk 0:00:10]}  Kxg5 {[%clk 0:00:55]} 39. Qe5+ {[%clk 0:00:11]}  Kh6 {[%clk 0:00:55]} 40. Qb2 {[%clk 0:00:10]}  Kg5 {[%clk 0:00:54]} 41. Kf3 {[%clk 0:00:10]}  Kf5 {[%clk 0:00:55]} 42. e4+ {[%clk 0:00:10]}  Ke6 {[%clk 0:00:55]} 43. Ke3 {[%clk 0:00:11]}  h5 {[%clk 0:00:55]} 44. Kd3 {[%clk 0:00:10]}  h4 {[%clk 0:00:55]} 45. Kc3 {[%clk 0:00:10]}  h3 {[%clk 0:00:56]} 46. Qh2 {[%clk 0:00:09]}  b2 {[%clk 0:00:56]} 47. Qxh3+ {[%clk 0:00:10]}  Ke5 {[%clk 0:00:54]} 48. Qg3+ {[%clk 0:00:10]}  Kxe4 {[%clk 0:00:54]} 49. Qxg6+ {[%clk 0:00:10]}  Ke3 {[%clk 0:00:55]} 50. Qe6+ {[%clk 0:00:09]}  Kf4 {[%clk 0:00:53]} 51. Qf6+ {[%clk 0:00:09]}  Ke4 {[%clk 0:00:54]} 52. Qe6+ {[%clk 0:00:08]}  Kf3 {[%clk 0:00:54]} 53. Qf5+ {[%clk 0:00:08]}  Ke2 {[%clk 0:00:54]} 54. Qe5+ {[%clk 0:00:07]}  Kd1 {[%clk 0:00:48]} 55. Qh5+ {[%clk 0:00:07]}  Ke1 {[%clk 0:00:45]} 56. Qh1+ {[%clk 0:00:06]}  Ke2 {[%clk 0:00:45]} 57. Qb1 {[%clk 0:00:06]}  Ke3 {[%clk 0:00:45]} 58. Qd3+ {[%clk 0:00:05]}  Kf4 {[%clk 0:00:45]} 59. Qd2+ {[%clk 0:00:05]}  Ke5 {[%clk 0:00:45]} 60. Qe2+ {[%clk 0:00:05]}  Kd6 {[%clk 0:00:46]} 61. Qh2+ {[%clk 0:00:04]}  Kc6 {[%clk 0:00:46]} 62. Qg2+ {[%clk 0:00:04]}  Kb6 {[%clk 0:00:47]} 63. Qf2+ {[%clk 0:00:04]}  Kb7 {[%clk 0:00:47]} 64. Qg2+ {[%clk 0:00:04]}  Ka7 {[%clk 0:00:41]} 65. Qf2+ {[%clk 0:00:04]}  Ka8 {[%clk 0:00:42]} 66. Qg2+ {[%clk 0:00:04]}  Rb7 {[%clk 0:00:41]} 67. Qg8+ {[%clk 0:00:04]}  Ka7 {[%clk 0:00:42]} 68. Qg1+ {[%clk 0:00:04]}  Rb6 {[%clk 0:00:42]} 69. Qb1 {[%clk 0:00:02]}  c6 {[%clk 0:00:41]} 70. Kc2 {[%clk 0:00:02]}  c5 {[%clk 0:00:40]} 71. Kc3 {[%clk 0:00:02]}  Ka6 {[%clk 0:00:39]} 72. Kc4 {[%clk 0:00:02]}  Rb4+ {[%clk 0:00:38]} 73. Kxc5 {[%clk 0:00:02]}  Ka7 {[%clk 0:00:38]} 74. Kc6 {[%clk 0:00:02]}  Rb6+ {[%clk 0:00:38]} 75. Kc7 {[%clk 0:00:02]}  Rb7+ {[%clk 0:00:38]} 76. Kc6 {[%clk 0:00:02]}  Rb6+ {[%clk 0:00:39]} 77. Kc7 {[%clk 0:00:02]}  Rb7+ {[%clk 0:00:40]} 78. Kc8 {[%clk 0:00:03]}  Rb6 {[%clk 0:00:41]} 79. Kc7 {[%clk 0:00:01]} 1/2-1/2

[Event "December 12 Early 2023"]
[Site "https://www.chess.com"]
[Date "2023.12.12"]
[Round "3"]
[White "Khamdamova, Afruza"]
[Black "Buscar, Michael"]
[Result "1-0"]
[Board "183"]
[TimeControl "180+1"]
[WhiteFideId "14210444"]
[BlackFideId "2603616"]
[WhiteElo "2520"]
[BlackElo "2337"]
[WhiteTeam "UZB"]
[BlackTeam "CAN"]
[WhiteClock "0:00:28"]
[BlackClock "0:00:01"]

1. Nf3 {[%clk 0:03:00]}  b6 {[%clk 0:02:35]} 2. g3 {[%clk 0:03:01]}  Bb7 {[%clk 0:02:35]} 3. Bg2 {[%clk 0:03:01]}  Nf6 {[%clk 0:02:35]} 4. O-O {[%clk 0:03:02]}  e6 {[%clk 0:02:36]} 5. d4 {[%clk 0:03:02]}  c5 {[%clk 0:02:35]} 6. c4 {[%clk 0:03:02]}  cxd4 {[%clk 0:02:35]} 7. Qxd4 {[%clk 0:03:02]}  Be7 {[%clk 0:02:32]} 8. Nc3 {[%clk 0:03:02]}  O-O {[%clk 0:02:30]} 9. Bg5 {[%clk 0:03:01]}  d6 {[%clk 0:02:23]} 10. Rad1 {[%clk 0:03:01]}  a6 {[%clk 0:02:24]} 11. Bxf6 {[%clk 0:03:00]}  gxf6 {[%clk 0:02:23]} 12. e4 {[%clk 0:02:52]}  Nd7 {[%clk 0:02:22]} 13. Rfe1 {[%clk 0:02:48]}  Ne5 {[%clk 0:02:20]} 14. Nxe5 {[%clk 0:02:47]}  fxe5 {[%clk 0:02:16]} 15. Qe3 {[%clk 0:02:45]}  Bg5 {[%clk 0:02:11]} 16. f4 {[%clk 0:02:44]}  Bh6 {[%clk 0:02:01]} 17. Rd3 {[%clk 0:02:28]}  Qc7 {[%clk 0:01:59]} 18. b3 {[%clk 0:02:22]}  Rad8 {[%clk 0:01:47]} 19. Red1 {[%clk 0:02:18]}  Rd7 {[%clk 0:01:38]} 20. Qf2 {[%clk 0:02:06]}  Bg7 {[%clk 0:01:15]} 21. f5 {[%clk 0:01:56]}  exf5 {[%clk 0:01:04]} 22. exf5 {[%clk 0:01:50]}  Bxg2 {[%clk 0:00:57]} 23. Kxg2 {[%clk 0:01:49]}  Qc6+ {[%clk 0:00:25]} 24. Nd5 {[%clk 0:01:43]}  f6 {[%clk 0:00:20]} 25. Qf3 {[%clk 0:01:41]}  Rc8 {[%clk 0:00:16]} 26. Nc3 {[%clk 0:00:59]}  Qxf3+ {[%clk 0:00:15]} 27. Kxf3 {[%clk 0:01:00]}  Rcd8 {[%clk 0:00:15]} 28. Nd5 {[%clk 0:00:57]}  b5 {[%clk 0:00:14]} 29. Nb6 {[%clk 0:00:56]}  Re7 {[%clk 0:00:11]} 30. Rxd6 {[%clk 0:00:55]}  Rxd6 {[%clk 0:00:10]} 31. Rxd6 {[%clk 0:00:56]}  bxc4 {[%clk 0:00:11]} 32. bxc4 {[%clk 0:00:55]}  Rc7 {[%clk 0:00:09]} 33. Rd8+ {[%clk 0:00:38]}  Kf7 {[%clk 0:00:09]} 34. Rd7+ {[%clk 0:00:39]}  Rxd7 {[%clk 0:00:09]} 35. Nxd7 {[%clk 0:00:39]}  Ke7 {[%clk 0:00:09]} 36. Nc5 {[%clk 0:00:39]}  a5 {[%clk 0:00:08]} 37. a4 {[%clk 0:00:34]}  Bh6 {[%clk 0:00:07]} 38. Nb3 {[%clk 0:00:31]}  Kd6 {[%clk 0:00:05]} 39. Ke4 {[%clk 0:00:28]}  Bc1 {[%clk 0:00:01]} 40. Nxc1 {[%clk 0:00:28]} 1-0